Cogmind - Beta 13 @@@ ROGUE MODE // 2024.03.09 @ 18:11:24 Player: Wakanaka Result: Core destroyed Performance ------------- Evolutions (3) 1500 Regions Visited (7) 1400 Robots Destroyed (62) 310 Value Destroyed (1585) 1585 Prototype IDs (3) 60 Alien Tech Used (0) 0 Bonus (500) 500 TOTAL SCORE: 5355 Bonus ------- Entered DSFs 500 Cogmind --------- Core Integrity 0/700 Matter 211/300 Energy 160/160 System Corruption 5% Temperature Critical (2273) Movement Core (300) Ox5 Location -7/DSF Parts ------- > --- POWER (1) -------- Light Nuclear Core > --- PROPULSION (4) --- VTOL Module VTOL Module VTOL Module VTOL Module > --- UTILITY (6) ------ (None) > --- WEAPON (2) ------- Pulse Rifle Heavy Flak Cannon > --- INVENTORY (5) ---- Hardened Heavy Armor Plating Pulse Rifle Heavy Laser EM Pulse Cannon Peak State ------------ > --- POWER ------------ Light Deuterium Engine > --- PROPULSION ------- Carbon-fiber Leg Improved Titanium Leg > --- UTILITY ---------- Medium Storage Unit Targeting Computer Hardened Heavy Armor Plating Hardened Heavy Armor Plating > --- WEAPON ----------- Heavy Flak Cannon Heavy Flak Cannon > --- INVENTORY -------- Advanced ECM Suite Shock Absorption System Pulse Rifle Pulse Rifle Pulse Rifle Heavy Laser EM Pulse Cannon [Rating: 40] Favorites ----------- Power Light Ion Engine Engine Light Ion Engine Power Core Light Nuclear Core Propulsion Aluminum Leg Leg Aluminum Leg Wheel Wheel Flight Unit VTOL Module Utility Targeting Computer Device Improved Heat Sink Storage Small Storage Unit Processor Targeting Computer Protection Utility Shielding Weapon Light Assault Rifle Energy Gun Particle Gun Energy Cannon Beam Cannon Ballistic Gun Light Assault Rifle Ballistic Cannon Heavy Flak Cannon Special Melee Weapon Datajack Build | -11 -10 -10 -10 -9 -8 -7 -7 ------- Run | Yrd Mat Min Exi Min Mat Fac DSF Slots Evolved 6 | . . . . . 4 2 . Power . | . . . . . . . . Propulsion 2 | . . . . . . 2 . Utility 4 | . . . . . 4 . . Weapon . | . . . . . . . . Parts Attached 73 | 7 11 5 . . 20 5 25 Power 12 | 1 2 2 . . 3 . 4 Engine 10 | 1 2 2 . . 2 . 3 Core 2 | . . . . . 1 . 1 Reactor . | . . . . . . . . Propulsion 21 | 2 2 . . . 6 3 8 Treads . | . . . . . . . . Leg 13 | 2 2 . . . 2 3 4 Wheel 2 | . . . . . 2 . . Hover . | . . . . . . . . Flight 6 | . . . . . 2 . 4 Utility 18 | 2 1 . . . 9 . 6 Device 3 | . . . . . 1 . 2 Storage 4 | 2 . . . . 2 . . Processor 1 | . 1 . . . . . . Hackware . | . . . . . . . . Protection 10 | . . . . . 6 . 4 Artifact . | . . . . . . . . Weapon 22 | 2 6 3 . . 2 2 7 Energy Gun 11 | . . 2 . . 2 2 5 Energy Cannon 1 | . 1 . . . . . . Ballistic Gun 6 | 2 3 1 . . . . . Ballistic Cannon 2 | . . . . . . . 2 Launcher . | . . . . . . . . Special Weapon . | . . . . . . . . Impact Weapon . | . . . . . . . . Slashing Weapon . | . . . . . . . . Piercing Weapon . | . . . . . . . . Special Melee Weapon 2 | . 2 . . . . . . Unidentified Prototypes 1 | . . . . . 1 . . Parts Lost 28 | . 3 3 . . 4 . 18 Power 4 | . 1 1 . . . . 2 Propulsion 9 | . 1 . . . 2 . 6 Utility 9 | . . . . . 2 . 7 Weapon 6 | . 1 2 . . . . 3 Highest Loss Streak 14 | . 2 2 . . 2 . 14 To Critical Strikes . | . . . . . . . . Average Slot Usage (%) 94 | . 99 97 100 100 98 97 76 Engine 10 | . 14 12 14 14 9 7 4 Leg 20 | . 27 28 28 28 16 12 11 Wheel 3 | . . . . . . 15 7 Device 2 | . . . . . 2 7 4 Storage 13 | . 27 14 14 14 9 7 5 Processor 6 | . . 14 14 14 9 7 5 Protection 13 | . . . . . 32 23 16 Energy Gun 10 | . . 12 14 14 16 15 11 Ballistic Gun 9 | . 26 10 14 14 1 . . Naked Turns . | . . . . . . . . Heaviest Build 53 | 13 13 18 18 18 42 28 53 Greatest Support 62 | 20 20 20 20 20 20 38 62 Greatest Overweight (x) 16 | 1 1 . . . 5 1 16 Average Overweight (x) . | . . . . . 1 . 1 Largest Inventory Capacity 15 | 8 8 8 8 8 15 10 10 Average Capacity 9 | 7 8 8 8 8 14 10 8 Most Carried 15 | 5 8 8 8 8 15 10 10 Average Carried 8 | 1 7 7 8 8 10 9 8 Final Capacity 10 | 8 8 8 8 8 10 10 5 Final Carried 10 | 4 8 8 8 8 10 10 5 Class Distribution -------------------- 58% | Mutant 41% | Scavenger-Mutant Dominant Class ---------------- Mutant | -10/Materials Scavenger-Mutant | -10/Mines Scavenger-Mutant | -10/Exiles Scavenger-Mutant | -9/Mines Mutant | -8/Materials Scavenger-Mutant | -7/Factory Mutant | -7/DSF Resources | -11 -10 -10 -10 -9 -8 -7 -7 ----------- Run | Yrd Mat Min Exi Min Mat Fac DSF Matter Collected 1489 | 299 294 327 . . 234 51 284 Remotely . | . . . . . . . . Salvage Created 1939 | 138 322 372 . . 641 . 466 Parts 137 | 15 30 21 . . 46 . 25 Haulers Intercepted 3 | . . . . . 3 . . Recyclers Shooed 3 | . 3 . . . . . . Parts Field Recycled . | . . . . . . . . Retrieved Matter . | . . . . . . . . Parts Self-Destructed . | . . . . . . . . Prevented . | . . . . . . . . Kills | -11 -10 -10 -10 -9 -8 -7 -7 ------- Run | Yrd Mat Min Exi Min Mat Fac DSF Combat Hostiles Destroyed 41 | . 9 7 . 1 9 . 15 Guns 32 | . 9 4 . 1 9 . 9 Cannons 9 | . . 3 . . . . 6 Classes Destroyed 13 | 3 4 1 . 1 1 . 3 Worker 11 | 2 1 2 . . 6 . . Tunneler 2 | 2 . . . . . . . Hauler 3 | . . . . . 3 . . Recycler 3 | 1 1 1 . . . . . Operator 1 | . 1 . . . . . . Watcher 2 | . 1 . . . 1 . . Swarmer 15 | . 6 3 . . . . 6 Grunt 14 | . 3 2 . . 7 . 2 Sentry 5 | . . 2 . . 2 . 1 Specialist 4 | . . . . . . . 4 Hunter 1 | . . . . . . . 1 Heavy 1 | . . . . . . . 1 Assembled 1 | . . . . 1 . . . Best Kill Streak 9 | 2 4 6 . 1 6 . 9 Combat Bots Only 9 | . 3 5 . 1 3 . 9 Max Kills in Single Turn 1 | 1 1 1 . 1 1 . 1 Gunslinging . | . . . . . . . . Exploded . | . . . . . . . . Melee . | . . . . . . . . Uniques/NPCs Destroyed . | . . . . . . . . Combat | -11 -10 -10 -10 -9 -8 -7 -7 -------- Run | Yrd Mat Min Exi Min Mat Fac DSF Hostile Shots Fired 458 | . 77 56 . 1 47 . 277 Missed 142 | . 18 20 . . 9 . 95 Damage Taken 5753 | . 526 409 . 15 866 . 3937 Core 1198 | . 92 74 . . 275 . 757 Absorbed by Shields . | . . . . . . . . Redirected to Shielding 229 | . . . . . 141 . 88 Core Remaining (%) 61 | 100 . . . 33 50 . . Volleys Fired 174 | 11 52 25 . 2 46 . 38 Largest 2 | 2 2 2 . 2 2 . 2 Hottest 134 | 40 80 105 . 88 134 . 126 Shots Fired 340 | 22 104 45 . 4 89 . 76 Gun 294 | 22 99 24 . 4 89 . 56 Cannon 46 | . 5 21 . . . . 20 Launcher . | . . . . . . . . Special . | . . . . . . . . Kinetic 155 | 22 99 11 . 2 1 . 20 Thermal 185 | . 5 34 . 2 88 . 56 Explosive . | . . . . . . . . Electromagnetic . | . . . . . . . . Robot Hit Streak 20 | 5 7 9 . 10 16 . 20 Robot Miss Streak 10 | 2 4 2 . 2 6 . 10 Penetration Max . | . . . . . . . . Secondary Targets 3 | . 3 . . . . . . Max Gunslinging Chain 1 | . 1 . . . . . . Shots Hit Robots 223 | 12 53 31 . 2 64 . 61 Core Hits 157 | 6 22 15 . 1 74 . 39 Critical Kills . | . . . . . . . . Critical Parts Destroyed 1 | . 1 . . . . . . Critical Strikes 4 | . 1 . . . 1 . 2 Burn 3 | . . . . . 1 . 2 Destroy 1 | . 1 . . . . . . Melee Attacks 1 | . 1 . . . . . . Impact . | . . . . . . . . Slashing . | . . . . . . . . Piercing . | . . . . . . . . Sneak Attacks 1 | . 1 . . . . . . Combat Hostiles . | . . . . . . . . Follow-up Attacks . | . . . . . . . . Damage Inflicted 3630 | 141 569 471 . 30 1238 . 1181 Guns 2721 | 141 500 192 . 30 1057 . 801 Cannons 728 | . 69 279 . . . . 380 Explosions 181 | . . . . . 181 . . Melee . | . . . . . . . . Ramming . | . . . . . . . . Kinetic 1096 | 141 500 58 . 17 . . 380 Thermal 2534 | . 69 413 . 13 1238 . 801 Explosive . | . . . . . . . . Electromagnetic . | . . . . . . . . Impact . | . . . . . . . . Slashing . | . . . . . . . . Piercing . | . . . . . . . . Highest Corruption 5 | . . . . . . . 5 Average Corruption 5 | . . . . . . . 5 Corruption Purged . | . . . . . . . . Corruption Blocked . | . . . . . . . . Effects 3 | . . . . . . . 3 Message Errors 1 | . . . . . . . 1 Matter Fused 2 | . . . . . . . 2 Overload Shots . | . . . . . . . . Overflow Damage 6 | . . 6 . . . . . Projectiles 6 | . . 6 . . . . . Explosions . | . . . . . . . . Melee . | . . . . . . . . Knockbacks 10 | . . . . . . . 10 Impact . | . . . . . . . . Kinetic 10 | . . . . . . . 10 Secondary . | . . . . . . . . Self-Inflicted Damage 56 | . . . . . 56 . . Shots 1 | . . . . . 1 . . Rammed . | . . . . . . . . Targets Rammed . | . . . . . . . . Kicked . | . . . . . . . . Crushed . | . . . . . . . . Highest Temperature 2273 | . 120 137 . 43 567 . 2273 Average Temperature 220 | . 42 48 . 23 122 . 523 Received Heat Transfer 753 | . 96 144 . . 351 . 162 Effects 37 | . . . . . 5 . 32 Shutdowns 5 | . . . . . . . 5 Energy Bleed 4 | . . . . . . . 4 Interference 2 | . . . . . . . 2 Matter Decay 2 | . . . . . 1 . 1 Short Circuit 5 | . . . . . 1 . 4 Damage (minor) 6 | . . . . . 1 . 5 Damage (major) 6 | . . . . . . . 6 Damage (core) 7 | . . . . . 2 . 5 Siege Activations . | . . . . . . . . Robots Corrupted . | . . . . . . . . Combat Hostiles . | . . . . . . . . Parts Fried . | . . . . . . . . Impact Corruptions . | . . . . . . . . Robots Melted 1 | . . . . . . . 1 Combat Hostiles . | . . . . . . . . Parts Melted 4 | . . . . . 3 . 1 Heat Transferred 4879 | . 148 890 . 37 1954 . 1850 Parts Sabotaged . | . . . . . . . . Parts Stolen . | . . . . . . . . Parts Stripped . | . . . . . . . . Power Chain Reactions . | . . . . . . . . Alert | -11 -10 -10 -10 -9 -8 -7 -7 ------- Run | Yrd Mat Min Exi Min Mat Fac DSF Peak Influence 315 | 25 287 182 . 15 283 144 315 Initial 128 | . 16 37 . . 5 128 100 Average 125 | 8 119 143 . . 89 142 205 Maximum Alert Level 1 | . 1 . . . 1 . 1 Low Security (%) 82 | 100 82 100 . 100 88 100 43 Level 1 17 | . 17 . . . 11 . 56 Level 2 . | . . . . . . . . Level 3 . | . . . . . . . . Level 4 . | . . . . . . . . Level 5 . | . . . . . . . . High Security . | . . . . . . . . Max Security . | . . . . . . . . Sterilizations 1 | . . . . . . . 1 Squads Dispatched 7 | . 1 . . . 3 . 3 Investigation . | . . . . . . . . Extermination . | . . . . . . . . Reinforcement 6 | . 1 . . . 2 . 3 Assault . | . . . . . . . . Garrison 1 | . . . . . 1 . . Intercept . | . . . . . . . . Searches Triggered . | . . . . . . . . Construction Impeded 1 | . . . . . 1 . . Haulers Reinforced . | . . . . . . . . Active Scanning Responses . | . . . . . . . . Cargo Convoy Interrupts . | . . . . . . . . Stealth | -11 -10 -10 -10 -9 -8 -7 -7 --------- Run | Yrd Mat Min Exi Min Mat Fac DSF Distress Signals 3 | . 2 . . . 1 . . Communications Jammed . | . . . . . . . . Distress Signals . | . . . . . . . . Times Spotted 73 | . 25 6 . 2 20 . 20 Peak Tracking Total 8 | . 4 4 . 2 5 . 8 Tactical Retreats 3 | . . . . . 1 . 2 Traps | -11 -10 -10 -10 -9 -8 -7 -7 ------- Run | Yrd Mat Min Exi Min Mat Fac DSF Traps Triggered . | . . . . . . . . Indirectly . | . . . . . . . . Trap Hack Attempts . | . . . . . . . . Triggered . | . . . . . . . . Disarmed . | . . . . . . . . Reprogrammed . | . . . . . . . . Reused . | . . . . . . . . Traps Extracted . | . . . . . . . . Installed . | . . . . . . . . Triggered . | . . . . . . . . Machines | -11 -10 -10 -10 -9 -8 -7 -7 ---------- Run | Yrd Mat Min Exi Min Mat Fac DSF Machines Disabled 4 | . 1 . . . 3 . . Max in Single Turn 3 | . 1 . . . 3 . . Machines Repaired . | . . . . . . . . Machines Dismantled . | . . . . . . . . Machines Sabotaged . | . . . . . . . . Overloaded Fab Kills . | . . . . . . . . Hacking | -11 -10 -10 -10 -9 -8 -7 -7 --------- Run | Yrd Mat Min Exi Min Mat Fac DSF Machines Accessed 7 | . 2 . . . 1 4 . Terminals 6 | . 2 . . . 1 3 . Fabricators . | . . . . . . . . Repair Stations . | . . . . . . . . Recycling Units . | . . . . . . . . Scanalyzers 1 | . . . . . . 1 . Garrison Access . | . . . . . . . . Total Hacks 23 | . 9 . . . 4 10 . Successful 15 | . 5 . . . 4 6 . Failed 8 | . 4 . . . . 4 . Catastrophic 1 | . . . . . . 1 . Database Lockouts . | . . . . . . . . Manual . | . . . . . . . . Terminals 19 | . 9 . . . 4 6 . Fabricators . | . . . . . . . . Repair Stations . | . . . . . . . . Recycling Units . | . . . . . . . . Scanalyzers 4 | . . . . . . 4 . Garrison Access . | . . . . . . . . Terminal Hacks 11 | . 5 . . . 4 2 . Record 5 | . 2 . . . 3 . . Robot Analysis 1 | . 1 . . . . . . Prototype ID Bank 1 | . 1 . . . . . . Open DSF 1 | . . . . . . 1 . Zone Layout 3 | . 1 . . . 1 1 . Fabricator Hacks . | . . . . . . . . Repair Station Hacks . | . . . . . . . . Recycling Unit Hacks . | . . . . . . . . Scanalyzer 4 | . . . . . . 4 . Insert Component 2 | . . . . . . 2 . Analyze 2 | . . . . . . 2 . Garrison Access Hacks . | . . . . . . . . Unauthorized Hacks . | . . . . . . . . Terminals . | . . . . . . . . Fabricators . | . . . . . . . . Repair Stations . | . . . . . . . . Recycling Units . | . . . . . . . . Scanalyzers . | . . . . . . . . Garrison Access . | . . . . . . . . Data Cores Recovered . | . . . . . . . . Used . | . . . . . . . . Hacking Detections 5 | . 1 . . . 1 3 . Full Trace Events 1 | . 1 . . . . . . Feedback Events . | . . . . . . . . Feedback Blocked . | . . . . . . . . Robot Schematics Acquired . | . . . . . . . . Robots Built . | . . . . . . . . Authchips . | . . . . . . . . Time . | . . . . . . . . Total Robot Build Rating . | . . . . . . . . Part Schematics Acquired 2 | . . . . . . 2 . Parts Built . | . . . . . . . . Authchips . | . . . . . . . . Time . | . . . . . . . . Total Part Build Rating . | . . . . . . . . Parts Repaired . | . . . . . . . . Time . | . . . . . . . . Parts Recycled . | . . . . . . . . Recycled Matter . | . . . . . . . . Retrieved Matter . | . . . . . . . . Retrieved Components . | . . . . . . . . Parts Scanalyzed 2 | . . . . . . 2 . Part Schematics Acquired 2 | . . . . . . 2 . Parts Damaged . | . . . . . . . . Bothacking | -11 -10 -10 -10 -9 -8 -7 -7 ------------ Run | Yrd Mat Min Exi Min Mat Fac DSF Used RIF Installer . | . . . . . . . . Robots Hacked 1 | . 1 . . . . . . Non-combat 1 | . 1 . . . . . . Combat . | . . . . . . . . Robot Hacks Applied 1 | . 1 . . . . . . parse_system 1 | . 1 . . . . . . Relay Couplers Released . | . . . . . . . . Fabnet Peak Effective % . | . . . . . . . . Robots Rewired . | . . . . . . . . Allies Hacked . | . . . . . . . . Hacks Repelled . | . . . . . . . . Allies | -11 -10 -10 -10 -9 -8 -7 -7 -------- Run | Yrd Mat Min Exi Min Mat Fac DSF Total Allies . | . . . . . . . . Largest Group . | . . . . . . . . Highest-Rated Group . | . . . . . . . . Highest-Rated Ally . | . . . . . . . . Total Orders . | . . . . . . . . Ally Attacks . | . . . . . . . . Total Damage . | . . . . . . . . Kills . | . . . . . . . . Allies Corrupted . | . . . . . . . . Allies Melted . | . . . . . . . . Intel | -11 -10 -10 -10 -9 -8 -7 -7 ------- Run | Yrd Mat Min Exi Min Mat Fac DSF Robot Analysis Total 1 | . 1 . . . . . . Derelict Logs Recovered 1 | . . 1 . . . . . Drone Launches . | . . . . . . . . Drone Recoveries . | . . . . . . . . Exploration | -11 -10 -10 -10 -9 -8 -7 -7 ------------- Run | Yrd Mat Min Exi Min Mat Fac DSF Turns Passed 3117 | 119 791 447 35 126 681 359 559 Spaces Moved 1666 | 46 486 294 30 101 251 296 162 Core 24 | 11 . . . . . . 13 Treads . | . . . . . . . . Legs 1473 | 35 486 294 30 101 222 172 133 Wheels 149 | . . . . . 25 124 . Hover . | . . . . . . . . Flight 20 | . . . . . 4 . 16 Fastest Speed 50 | 50 120 120 120 120 95 95 109 Average Speed 134 | 155 120 120 120 120 183 113 174 Slowest Speed 850 | 190 190 120 120 120 390 200 850 Overloaded Moves . | . . . . . . . . Propulsion Burnouts . | . . . . . . . . Robots Hopped . | . . . . . . . . Cave-ins Triggered 1 | . . . . . . . 1 Exploration Rate (%) 32 | 4 57 57 8 36 27 10 63 Regions Visited 7 Branch Regions 3 Pre-discovered Areas . | . . . . . . . . Known Exits Taken 1 | . . . . . . 1 . Unknown Exits Taken 6 | 1 1 1 1 1 1 . . Scrap Searched 1 | . . 1 . . . . . Spaces Dug . | . . . . . . . . Terrain Destroyed 37 | . . . . . 37 . . Melee . | . . . . . . . . Projectile . | . . . . . . . . AOE 37 | . . . . . 37 . . Terrain Rammed . | . . . . . . . . Walls Destroyed . | . . . . . . . . Machines Disabled . | . . . . . . . . Actions | -11 -10 -10 -10 -9 -8 -7 -7 --------- Run | Yrd Mat Min Exi Min Mat Fac DSF Total 2224 | 73 603 348 29 102 383 322 364 Wait 194 | . 30 7 . . 33 6 118 Move 1659 | 45 485 293 29 100 250 295 162 Hop . | . . . . . . . . Pick Up 70 | 10 15 10 . . 20 7 8 Fast Attach 16 | 1 . . . . 5 2 8 Attach 30 | 6 4 3 . . 8 1 8 Detach 2 | . . . . . . 1 1 Swap 27 | . 7 2 . . 7 2 9 Drop 51 | . 9 8 . . 14 8 12 Fire 174 | 11 52 25 . 2 46 . 38 Melee 1 | . 1 . . . . . . Ram . | . . . . . . . . Kick . | . . . . . . . . Crush . | . . . . . . . . Escape Stasis . | . . . . . . . . Rewire . | . . . . . . . . Trap . | . . . . . . . . Miscellaneous . | . . . . . . . . Route ------- -11/Scrapyard -10/Materials (discovered 4 exits: [*Mat x2] / [*Min x2]) -10/Mines -10/Exiles -9/Mines -8/Materials -7/Factory -7/DSF (discovered 1 exit: [*Fac]) History --------- Turn | Location | Event 33 | -11/Scrapyard | Discovered new exit (range 15) 120 | -11/Scrapyard | Entered Materials 167 | -10/Materials | Discovered new exit (range 11) 220 | -10/Materials | Discovered new exit (range 4) 318 | -10/Materials | Build established: Mutant 360 | -10/Materials | Discovered new exit (range 15) 624 | -10/Materials | Discovered new exit (range 13) 911 | -10/Materials | Entered Mines 929 | -10/Mines | Core integrity fell below 50% 952 | -10/Mines | Met a Derelict bent on vengeance 1093 | -10/Mines | Learned 2 Materials zone layouts 1352 | -10/Mines | Deemed a non-threat by the Exiles lab entrance 1352 | -10/Mines | Discovered new exit (range 5) 1358 | -10/Mines | Entered Exiles 1358 | -10/Exiles | Found Exiles lab abandoned 1361 | -10/Exiles | Build established: Scavenger-Mutant 1378 | -10/Exiles | Discovered new exit (range 14) 1393 | -10/Exiles | Entered Mines 1493 | -9/Mines | Assembled infested the area 1516 | -9/Mines | Discovered new exit (range 3) 1519 | -9/Mines | Entered Materials 1519 | -8/Materials | Evolved 4 slots: Utility x4 1919 | -8/Materials | Discovered new exit (range 9) 1960 | -8/Materials | Build established: Mutant 2118 | -8/Materials | Garrison activated, responded to threat 2200 | -8/Materials | Entered Factory 2200 | -7/Factory | Evolved 2 slots: Propulsion x2 2313 | -7/Factory | Build established: Scavenger-Mutant 2559 | -7/Factory | Identified exit to DSF 2559 | -7/Factory | Entered DSF 2639 | -7/DSF | Additional patrols routed to DSF 2934 | -7/DSF | Discovered new exit (range 15) 2970 | -7/DSF | Sterilization system engaged 2984 | -7/DSF | Crushed by falling debris 2986 | -7/DSF | Build established: Mutant 2990 | -7/DSF | Ambient heat levels rising (+10) 3005 | -7/DSF | Ambient heat levels rising (+10) 3017 | -7/DSF | Lost 14 parts (2p4n5u3w) 3018 | -7/DSF | Destroyed 9 combat bots 3020 | -7/DSF | Ambient heat levels rising (+10) 3035 | -7/DSF | Ambient heat levels rising (+10) 3050 | -7/DSF | Ambient heat levels rising (+10) 3065 | -7/DSF | Ambient heat levels rising (+10) 3075 | -7/DSF | Core integrity fell below 50% 3080 | -7/DSF | Ambient heat levels rising (+10) 3092 | -7/DSF | Core integrity fell below 20% 3095 | -7/DSF | Ambient heat levels rising (+10) 3110 | -7/DSF | Ambient heat levels rising (+10) 3119 | -7/DSF | Core destroyed Last Messages --------------- 03105_ Overheating: Energy bleed (-30). 03105_ A-02 Transporter heat damages core (-5). 03108_ A-02 Transporter heat damages core (-3). 03109_ Overheating: Core damaged (-70). 03110_ ALERT: Ambient heat levels +10. 03112_ Power failure, Lgt. Nuclear Core shutdown. 03112_ A-02 Transporter heat spikes uncontrollably. 03113_ A-02 Transporter heat spikes uncontrollably. 03114_ Overheating: Hvy. Flak Cannon damaged (-1). 03116_ Overheating: Hvy. Flak Cannon damaged (-1). 03117_ Overheating: Broken VTOL Module damaged (-8). 03117_ A-02 Transporter heat damages core (-6). 03119_ Overheating: Core damaged (-77). Map ----- +----------------------------------------------------+ | | | | | | | | | | | | | | | | | | | | | ?????????????????????????????????????????????????? | | ?????????????????????????????????????????????????? | | ?????????????????????????????????????????????????? | | ?????????????????????????????????????????????????? | | ?????????????????????????????????????#""?????????? | | ?????????????????????????????????????#"#?????????? | | ????????????????????#########???????##"####??????? | | ????????????????????#[[ ^ [%#########"""""#??????? | | ????????????????#!!!#[[ %[ #***# ##"""""#??????? | | ???????????? =! =* ""##"#???? | | ?????????? !%= %! """""#???? | | ??????????? ##!!#!!!### ;##***#**## ""###????? | | ????????????????#!??### ###***#**### ###??????? | | ????????????????????#** !!;######### ##???????? | | ????????????????????#** !!#??????#[** *#???????? | | ????????????????????#** @!!#?####?#* *#???????? | | ????????????????????### ;##?#]]#?### ##???????? | | ????????????????????#!! !!### =###**! *#???????? | | ????????????????????#!! !!+ ][%%+** *#???????? | | ????????????????????#!! !!########** !*#???????? | | ????????????????????### ############ ^###??????? | | ????????????????#????## ###!!!#!!!## ^^!#??????? | | ????????????#!!!#!!!##% [ ##!!!#!!!## !!#??????? | | ???????????? ^ ^ %% =!% [[#??????? | | ??????????? ^ !%%[ [ [[#??????? | | ???????????? ^ ! % ! [[###????? | | ????????????# #***##% %"#!!!#!!%%# % " #????? | | ????????????# ??#***?## ###!!!#!![#% ###????? | | ????????????????###???# #?##+######" "##??????? | | ?????????????????????!! !??# #??##&& #???????? | | ????????????????????#!! !??# #???#&& #???????? | | ????????????????????#!! !??# !???#&& #???????? | | ????????????????????### #??##!???### ##???????? | | ?????????????????????? ?????#?????& &#???????? | | ?????????????????????? ???????????& &#???????? | | ????????????????????? ???????????# ##???????? | | ?????????????????????## ???????????# #????????? | | ???????????????????????? ???????????? "????????? | | ????????????????????????????????????? "????????? | | ????????????????????????????????????? <""???????? | +----------------------------------------------------+ Best States ------------- Heat Dissipation 48 Energy Generation 14 Energy Capacity 265 Matter Stores 358 Matter Capacity 400 Sight Range 16 Terrain Scan Density 10 ECM Strength 2 Armor Coverage 1200 Core Shielding 20 Power Shielding 33 Propulsion Shielding 33 Utility Shielding 33 Evasion (%) 59 Targeting Accuracy 5 Item Schematics ----------------- Imp. Carbon-fiber Leg | -7/Factory | Scanalyzed Adv. ECM Suite | -7/Factory | Scanalyzed Robot Schematics ------------------ None Fabricated ------------ Nothing Alien Tech Used ----------------- None Achievements -------------- None Challenges ------------ None Game ------ Seed StasisSapperBooster Manual? 0 Play Time 00:53:40 Cumulative 51.5 hours Start 2024.03.09 @ 17:09:43 End 2024.03.09 @ 18:11:24 Sessions 1 Manual Loads 0 Difficulty Rogue Special Mode None Game No. 61 Rogue 61 Adventurer 0 Explorer 0 Win Type - Total 0 Types 0/0/0/0/0/0/0/0/0 Lore% 22 Gallery% 32 Achievement% 26 Wizard Run 0 Options --------- Layout 1 ASCII 0 Keyboard 0 Movement Mouse Keybinds 0 Fullscreen 1 Font 24/Smallcaps Map View 50x35 Zoom Use 0% Tactical HUD 1 Map Filters NONE Filters NONE Steam 1 RUN: 07729ba3-f026-468d-851a-9e1c0c6433f3